[Event "Titled Tuesday Blitz November 22 Late 2022"]
[White "Fiol, Fabrice"]
[Black "Mesa Cruz, Juan Carlos"]
[WhiteFideId "611670"]
[BlackFideId "6423400"]
[WhiteElo "2440"]
[BlackElo "2059"]
[Result "1-0"]
[Round "03"]
[TimeControl "180+1"]
[Date "2022.11.23"]
[WhiteClock "0:00:03"]
[BlackClock "0:00:02"]

1. e4 {[%clk 0:03:00]}  c5 {[%clk 0:02:59]} 2. Nf3 {[%clk 0:03:00]}  d6 {[%clk 0:02:40]} 3. Bb5+ {[%clk 0:02:55]}  Bd7 {[%clk 0:02:38]} 4. Bxd7+ {[%clk 0:02:54]}  Qxd7 {[%clk 0:02:39]} 5. O-O {[%clk 0:02:54]}  Nf6 {[%clk 0:02:37]} 6. Re1 {[%clk 0:02:54]}  Nc6 {[%clk 0:02:35]} 7. c3 {[%clk 0:02:54]}  e6 {[%clk 0:02:35]} 8. d4 {[%clk 0:02:54]}  cxd4 {[%clk 0:02:35]} 9. cxd4 {[%clk 0:02:54]}  d5 {[%clk 0:02:36]} 10. e5 {[%clk 0:02:54]}  Ne4 {[%clk 0:02:36]} 11. Nbd2 {[%clk 0:02:53]}  Nxd2 {[%clk 0:02:36]} 12. Bxd2 {[%clk 0:02:53]}  Be7 {[%clk 0:02:36]} 13. a3 {[%clk 0:02:52]}  O-O {[%clk 0:02:36]} 14. Rc1 {[%clk 0:02:51]}  Rfc8 {[%clk 0:02:36]} 15. h4 {[%clk 0:02:50]}  Qd8 {[%clk 0:02:24]} 16. h5 {[%clk 0:02:48]}  h6 {[%clk 0:02:24]} 17. Rc3 {[%clk 0:02:48]}  Kh8 {[%clk 0:02:19]} 18. Rd3 {[%clk 0:02:44]}  Qg8 {[%clk 0:02:18]} 19. Nh2 {[%clk 0:02:40]}  Bd8 {[%clk 0:02:12]} 20. Qg4 {[%clk 0:02:36]}  Bb6 {[%clk 0:02:07]} 21. Bc3 {[%clk 0:02:29]}  Ne7 {[%clk 0:02:05]} 22. Qh3 {[%clk 0:02:26]}  Qh7 {[%clk 0:02:01]} 23. g4 {[%clk 0:02:22]}  Rc4 {[%clk 0:01:56]} 24. Ree3 {[%clk 0:02:12]}  a5 {[%clk 0:01:42]} 25. Nf3 {[%clk 0:02:00]}  a4 {[%clk 0:01:30]} 26. Nd2 {[%clk 0:01:58]}  Rc7 {[%clk 0:01:28]} 27. Rf3 {[%clk 0:01:57]}  Nc6 {[%clk 0:01:25]} 28. Nf1 {[%clk 0:01:43]}  Ba5 {[%clk 0:01:15]} 29. Rg3 {[%clk 0:01:16]}  Bxc3 {[%clk 0:00:48]} 30. bxc3 {[%clk 0:01:17]}  Ne7 {[%clk 0:00:48]} 31. f4 {[%clk 0:01:06]}  Qe4 {[%clk 0:00:41]} 32. Rgf3 {[%clk 0:01:01]}  Ra6 {[%clk 0:00:15]} 33. f5 {[%clk 0:00:59]}  exf5 {[%clk 0:00:10]} 34. gxf5 {[%clk 0:01:00]}  Rb6 {[%clk 0:00:09]} 35. f6 {[%clk 0:00:48]}  gxf6 {[%clk 0:00:07]} 36. exf6 {[%clk 0:00:48]}  Ng8 {[%clk 0:00:08]} 37. Rde3 {[%clk 0:00:43]}  Qh7 {[%clk 0:00:07]} 38. Qh4 {[%clk 0:00:38]}  Rcc6 {[%clk 0:00:05]} 39. Re8 {[%clk 0:00:35]}  Rxf6 {[%clk 0:00:04]} 40. Rxf6 {[%clk 0:00:34]}  Qg7+ {[%clk 0:00:04]} 41. Ng3 {[%clk 0:00:20]}  Rxf6 {[%clk 0:00:03]} 42. Kh2 {[%clk 0:00:17]}  Kh7 {[%clk 0:00:04]} 43. Qh3 {[%clk 0:00:14]}  Rf2+ {[%clk 0:00:04]} 44. Kg1 {[%clk 0:00:14]}  Rf4 {[%clk 0:00:03]} 45. Re5 {[%clk 0:00:11]}  Nf6 {[%clk 0:00:03]} 46. Rf5 {[%clk 0:00:11]}  Rg4 {[%clk 0:00:03]} 47. Kh2 {[%clk 0:00:11]}  Ne4 {[%clk 0:00:03]} 48. Nxe4 {[%clk 0:00:09]}  Rxe4 {[%clk 0:00:04]} 49. Rf2 {[%clk 0:00:06]}  f6 {[%clk 0:00:03]} 50. Qf5+ {[%clk 0:00:05]}  Kh8 {[%clk 0:00:02]} 51. Rg2 {[%clk 0:00:06]}  Qc7+ {[%clk 0:00:03]} 52. Kh3 {[%clk 0:00:05]}  Qe7 {[%clk 0:00:03]} 53. Qc8+ {[%clk 0:00:04]}  Kh7 {[%clk 0:00:02]} 54. Qg8# {[%clk 0:00:03]} 1-0


[Site "https://www.chess.com"]

[Event "Titled Tuesday Blitz November 22 Late 2022"]
[White "Forgacs, Attila Jr."]
[Black "Floresvillar Gonzalez, Luis Migu"]
[WhiteFideId "773654"]
[BlackFideId "5100542"]
[WhiteElo "2168"]
[BlackElo "2040"]
[Result "0-1"]
[Round "03"]
[TimeControl "180+1"]
[Date "2022.11.23"]
[WhiteClock "0:00:10"]
[BlackClock "0:00:16"]

1. e4 {[%clk 0:03:00]}  c6 {[%clk 0:03:00]} 2. d4 {[%clk 0:03:00]}  d5 {[%clk 0:02:59]} 3. Nc3 {[%clk 0:03:01]}  dxe4 {[%clk 0:02:58]} 4. Nxe4 {[%clk 0:03:02]}  Bf5 {[%clk 0:02:57]} 5. Ng3 {[%clk 0:03:02]}  Bg6 {[%clk 0:02:57]} 6. h4 {[%clk 0:03:01]}  h6 {[%clk 0:02:57]} 7. Nf3 {[%clk 0:03:01]}  Nd7 {[%clk 0:02:56]} 8. h5 {[%clk 0:03:02]}  Bh7 {[%clk 0:02:56]} 9. Bd3 {[%clk 0:03:03]}  Bxd3 {[%clk 0:02:56]} 10. Qxd3 {[%clk 0:03:04]}  e6 {[%clk 0:02:56]} 11. Bd2 {[%clk 0:03:04]}  Qb6 {[%clk 0:02:53]} 12. O-O-O {[%clk 0:02:57]}  Ngf6 {[%clk 0:02:50]} 13. Ne4 {[%clk 0:02:55]}  Nxe4 {[%clk 0:02:48]} 14. Qxe4 {[%clk 0:02:56]}  O-O-O {[%clk 0:02:47]} 15. c4 {[%clk 0:02:43]}  Bb4 {[%clk 0:02:29]} 16. Bf4 {[%clk 0:02:33]}  Nf6 {[%clk 0:02:15]} 17. Qe2 {[%clk 0:02:29]}  Qa5 {[%clk 0:02:12]} 18. a3 {[%clk 0:02:27]}  Bd6 {[%clk 0:02:00]} 19. Bxd6 {[%clk 0:02:21]}  Rxd6 {[%clk 0:01:58]} 20. Ne5 {[%clk 0:02:22]}  Rf8 {[%clk 0:01:49]} 21. f3 {[%clk 0:02:13]}  c5 {[%clk 0:01:40]} 22. dxc5 {[%clk 0:02:08]}  Qxc5 {[%clk 0:01:36]} 23. Rxd6 {[%clk 0:02:06]}  Qxd6 {[%clk 0:01:35]} 24. Rd1 {[%clk 0:02:07]}  Qc7 {[%clk 0:01:22]} 25. g4 {[%clk 0:02:06]}  Rd8 {[%clk 0:01:21]} 26. Rxd8+ {[%clk 0:02:04]}  Kxd8 {[%clk 0:01:20]} 27. Qd3+ {[%clk 0:02:02]}  Ke7 {[%clk 0:01:16]} 28. Qd4 {[%clk 0:01:55]}  b5 {[%clk 0:01:11]} 29. c5 {[%clk 0:01:49]}  Nd5 {[%clk 0:01:04]} 30. b4 {[%clk 0:01:47]}  a5 {[%clk 0:01:04]} 31. Kb2 {[%clk 0:01:38]}  axb4 {[%clk 0:01:03]} 32. axb4 {[%clk 0:01:39]}  Nxb4 {[%clk 0:01:00]} 33. Ng6+ {[%clk 0:01:02]}  fxg6 {[%clk 0:00:57]} 34. Qxg7+ {[%clk 0:00:30]}  Kd8 {[%clk 0:00:55]} 35. Qf8+ {[%clk 0:00:30]}  Kd7 {[%clk 0:00:54]} 36. Qf7+ {[%clk 0:00:27]}  Kc8 {[%clk 0:00:53]} 37. Qxc7+ {[%clk 0:00:22]}  Kxc7 {[%clk 0:00:50]} 38. g5 {[%clk 0:00:23]}  Nd3+ {[%clk 0:00:42]} 39. Kc3 {[%clk 0:00:23]}  Ne5 {[%clk 0:00:42]} 40. f4 {[%clk 0:00:14]}  hxg5 {[%clk 0:00:37]} 41. h6 {[%clk 0:00:07]}  gxf4 {[%clk 0:00:34]} 42. Kd4 {[%clk 0:00:06]}  Nf7 {[%clk 0:00:34]} 43. Ke4 {[%clk 0:00:04]}  e5 {[%clk 0:00:32]} 44. h7 {[%clk 0:00:04]}  b4 {[%clk 0:00:31]} 45. Kd5 {[%clk 0:00:04]}  b3 {[%clk 0:00:29]} 46. Ke6 {[%clk 0:00:05]}  Nh8 {[%clk 0:00:28]} 47. Kf6 {[%clk 0:00:06]}  b2 {[%clk 0:00:27]} 48. Kg7 {[%clk 0:00:07]}  b1=Q {[%clk 0:00:27]} 49. Kxh8 {[%clk 0:00:08]}  Qb8+ {[%clk 0:00:26]} 50. Kg7 {[%clk 0:00:08]}  f3 {[%clk 0:00:25]} 51. c6 {[%clk 0:00:08]}  Kxc6 {[%clk 0:00:24]} 52. h8=Q {[%clk 0:00:08]}  Qxh8+ {[%clk 0:00:22]} 53. Kf7 {[%clk 0:00:07]}  f2 {[%clk 0:00:20]} 54. Ke6 {[%clk 0:00:08]}  f1=Q {[%clk 0:00:20]} 55. Ke7 {[%clk 0:00:08]}  Qb5 {[%clk 0:00:17]} 56. Ke6 {[%clk 0:00:09]}  Qd5+ {[%clk 0:00:17]} 57. Ke7 {[%clk 0:00:10]}  Qg7+ {[%clk 0:00:17]} 58. Ke8 {[%clk 0:00:10]}  Qdd7# {[%clk 0:00:16]} 0-1


[Site "https://www.chess.com"]

[Event "Titled Tuesday Blitz November 22 Late 2022"]
[White "Gadimbayli, Abdulla"]
[Black "Tari, Aryan"]
[WhiteFideId "13404938"]
[BlackFideId "1510045"]
[WhiteElo "2399"]
[BlackElo "2612"]
[Result "1-0"]
[Round "03"]
[TimeControl "180+1"]
[Date "2022.11.22"]
[WhiteClock "0:00:06"]
[BlackClock "0:00:03"]

1. e4 {[%clk 0:03:00]}  c6 {[%clk 0:02:57]} 2. Nf3 {[%clk 0:03:01]}  d5 {[%clk 0:02:58]} 3. exd5 {[%clk 0:03:02]}  cxd5 {[%clk 0:02:59]} 4. d4 {[%clk 0:03:03]}  Nf6 {[%clk 0:02:57]} 5. Ne5 {[%clk 0:03:02]}  g6 {[%clk 0:02:56]} 6. c3 {[%clk 0:03:01]}  Bg7 {[%clk 0:02:56]} 7. Bd3 {[%clk 0:03:02]}  O-O {[%clk 0:02:56]} 8. O-O {[%clk 0:03:02]}  Nc6 {[%clk 0:02:56]} 9. Nxc6 {[%clk 0:03:02]}  bxc6 {[%clk 0:02:57]} 10. Nd2 {[%clk 0:03:03]}  Nd7 {[%clk 0:02:56]} 11. Re1 {[%clk 0:03:00]}  e5 {[%clk 0:02:53]} 12. dxe5 {[%clk 0:02:59]}  Nxe5 {[%clk 0:02:54]} 13. Be2 {[%clk 0:02:53]}  a5 {[%clk 0:02:38]} 14. Nf3 {[%clk 0:02:26]}  Nxf3+ {[%clk 0:02:35]} 15. Bxf3 {[%clk 0:02:27]}  a4 {[%clk 0:02:36]} 16. a3 {[%clk 0:02:19]}  Qb6 {[%clk 0:02:28]} 17. h4 {[%clk 0:01:41]}  Bf5 {[%clk 0:02:21]} 18. Re2 {[%clk 0:01:38]}  Rfe8 {[%clk 0:02:01]} 19. Be3 {[%clk 0:01:38]}  Qb5 {[%clk 0:02:00]} 20. Qd2 {[%clk 0:01:34]}  Be4 {[%clk 0:01:55]} 21. Bxe4 {[%clk 0:01:32]}  Rxe4 {[%clk 0:01:56]} 22. h5 {[%clk 0:01:32]}  Rae8 {[%clk 0:01:51]} 23. Ree1 {[%clk 0:01:22]}  gxh5 {[%clk 0:01:45]} 24. f3 {[%clk 0:00:58]}  R4e6 {[%clk 0:01:45]} 25. Bf2 {[%clk 0:00:59]}  h6 {[%clk 0:01:33]} 26. Rxe6 {[%clk 0:00:53]}  Rxe6 {[%clk 0:01:34]} 27. Re1 {[%clk 0:00:52]}  Rxe1+ {[%clk 0:01:30]} 28. Bxe1 {[%clk 0:00:53]}  Qc4 {[%clk 0:01:17]} 29. Bf2 {[%clk 0:00:48]}  c5 {[%clk 0:01:04]} 30. Qe3 {[%clk 0:00:40]}  d4 {[%clk 0:01:04]} 31. Qe8+ {[%clk 0:00:40]}  Bf8 {[%clk 0:01:04]} 32. Qe4 {[%clk 0:00:19]}  Bd6 {[%clk 0:01:04]} 33. g3 {[%clk 0:00:10]}  Qe6 {[%clk 0:00:53]} 34. Qa8+ {[%clk 0:00:08]}  Kh7 {[%clk 0:00:53]} 35. cxd4 {[%clk 0:00:09]}  cxd4 {[%clk 0:00:51]} 36. Qxa4 {[%clk 0:00:09]}  d3 {[%clk 0:00:49]} 37. Qd4 {[%clk 0:00:09]}  Qe2 {[%clk 0:00:45]} 38. Qf6 {[%clk 0:00:06]}  Kg8 {[%clk 0:00:07]} 39. Bd4 {[%clk 0:00:06]}  Qe3+ {[%clk 0:00:03]} 40. Bxe3 {[%clk 0:00:06]} 1-0


[Site "https://www.chess.com"]

[Event "Titled Tuesday Blitz November 22 Late 2022"]
[White "Goncalves, Davi Sulzbacher"]
[Black "Abdrlauf, Elham"]
[WhiteFideId "2154510"]
[BlackFideId "1533533"]
[WhiteElo "2512"]
[BlackElo "2809"]
[Result "1-0"]
[Round "03"]
[TimeControl "180+1"]
[Date "2022.11.23"]
[WhiteClock "0:00:23"]
[BlackClock "0:00:01"]

1. Nf3 {[%clk 0:02:57]}  Nf6 {[%clk 0:02:55]} 2. g3 {[%clk 0:02:57]}  d5 {[%clk 0:02:55]} 3. Bg2 {[%clk 0:02:57]}  c5 {[%clk 0:02:55]} 4. O-O {[%clk 0:02:58]}  Nc6 {[%clk 0:02:56]} 5. d4 {[%clk 0:02:58]}  cxd4 {[%clk 0:02:55]} 6. Nxd4 {[%clk 0:02:59]}  Bd7 {[%clk 0:02:56]} 7. Nc3 {[%clk 0:02:52]}  e5 {[%clk 0:02:54]} 8. Nb3 {[%clk 0:02:52]}  Be6 {[%clk 0:02:52]} 9. Bg5 {[%clk 0:02:52]}  d4 {[%clk 0:02:51]} 10. Ne4 {[%clk 0:02:47]}  Be7 {[%clk 0:02:51]} 11. Bxf6 {[%clk 0:02:46]}  Bxf6 {[%clk 0:02:37]} 12. Nbc5 {[%clk 0:02:38]}  Bc8 {[%clk 0:02:24]} 13. e3 {[%clk 0:02:10]}  Be7 {[%clk 0:02:17]} 14. exd4 {[%clk 0:02:04]}  exd4 {[%clk 0:02:18]} 15. Re1 {[%clk 0:02:00]}  O-O {[%clk 0:02:17]} 16. Nd3 {[%clk 0:01:48]}  Qb6 {[%clk 0:01:56]} 17. a4 {[%clk 0:01:32]}  Be6 {[%clk 0:01:30]} 18. Qh5 {[%clk 0:01:07]}  h6 {[%clk 0:01:11]} 19. a5 {[%clk 0:00:55]}  Qc7 {[%clk 0:01:10]} 20. Nec5 {[%clk 0:00:51]}  Bc4 {[%clk 0:00:45]} 21. a6 {[%clk 0:00:38]}  b6 {[%clk 0:00:21]} 22. Bxc6 {[%clk 0:00:37]}  Qxc6 {[%clk 0:00:22]} 23. Rxe7 {[%clk 0:00:38]}  bxc5 {[%clk 0:00:17]} 24. Qxc5 {[%clk 0:00:38]}  Rfc8 {[%clk 0:00:08]} 25. Qxc6 {[%clk 0:00:37]}  Rxc6 {[%clk 0:00:08]} 26. Ne5 {[%clk 0:00:37]}  Rxa6 {[%clk 0:00:04]} 27. Rxa6 {[%clk 0:00:36]}  Bxa6 {[%clk 0:00:04]} 28. Rxf7 {[%clk 0:00:35]}  Bb5 {[%clk 0:00:01]} 29. Rb7 {[%clk 0:00:34]}  a6 {[%clk 0:00:02]} 30. f4 {[%clk 0:00:33]}  Rc8 {[%clk 0:00:02]} 31. c4 {[%clk 0:00:25]}  dxc3 {[%clk 0:00:02]} 32. bxc3 {[%clk 0:00:26]}  Rxc3 {[%clk 0:00:03]} 33. Kf2 {[%clk 0:00:24]}  Rc2+ {[%clk 0:00:02]} 34. Kg1 {[%clk 0:00:24]}  Rc1+ {[%clk 0:00:02]} 35. Kg2 {[%clk 0:00:24]}  Rc2+ {[%clk 0:00:01]} 36. Kg1 {[%clk 0:00:23]} 1-0


[Site "https://www.chess.com"]

[Event "Titled Tuesday Blitz November 22 Late 2022"]
[White "Gorodetzky, David"]
[Black "Taboas Rodriguez, Daniel"]
[WhiteFideId "2813416"]
[BlackFideId "2208466"]
[WhiteElo "2840"]
[BlackElo "2523"]
[Result "1-0"]
[Round "03"]
[TimeControl "180+1"]
[Date "2022.11.23"]
[WhiteClock "0:00:15"]
[BlackClock "0:00:14"]

1. Nf3 {[%clk 0:02:58]}  Nf6 {[%clk 0:02:58]} 2. g3 {[%clk 0:02:56]}  b6 {[%clk 0:02:58]} 3. Bg2 {[%clk 0:02:55]}  Bb7 {[%clk 0:02:59]} 4. O-O {[%clk 0:02:55]}  g6 {[%clk 0:03:00]} 5. d3 {[%clk 0:02:52]}  Bg7 {[%clk 0:02:59]} 6. e4 {[%clk 0:02:52]}  O-O {[%clk 0:03:00]} 7. Nbd2 {[%clk 0:02:49]}  c5 {[%clk 0:03:00]} 8. Re1 {[%clk 0:02:46]}  Nc6 {[%clk 0:02:59]} 9. c3 {[%clk 0:02:26]}  d5 {[%clk 0:02:59]} 10. e5 {[%clk 0:02:16]}  Ne8 {[%clk 0:02:56]} 11. d4 {[%clk 0:02:13]}  Nc7 {[%clk 0:02:56]} 12. Nf1 {[%clk 0:02:11]}  Ne6 {[%clk 0:02:55]} 13. Be3 {[%clk 0:02:10]}  cxd4 {[%clk 0:02:52]} 14. cxd4 {[%clk 0:02:11]}  Rc8 {[%clk 0:02:51]} 15. h4 {[%clk 0:02:10]}  Ba6 {[%clk 0:02:48]} 16. h5 {[%clk 0:02:08]}  Nb4 {[%clk 0:02:48]} 17. hxg6 {[%clk 0:02:06]}  hxg6 {[%clk 0:02:48]} 18. Qa4 {[%clk 0:02:02]}  Rc4 {[%clk 0:02:30]} 19. b3 {[%clk 0:02:01]}  b5 {[%clk 0:02:27]} 20. Qa3 {[%clk 0:01:59]}  Nc2 {[%clk 0:02:27]} 21. Qb2 {[%clk 0:01:58]}  Rc8 {[%clk 0:02:24]} 22. Bh3 {[%clk 0:01:45]}  b4 {[%clk 0:02:01]} 23. N1d2 {[%clk 0:01:27]}  Bd3 {[%clk 0:01:56]} 24. Rac1 {[%clk 0:01:07]}  Nxe1 {[%clk 0:01:56]} 25. Nxe1 {[%clk 0:01:04]}  Bb5 {[%clk 0:01:45]} 26. Ng2 {[%clk 0:00:55]}  Rxc1+ {[%clk 0:01:43]} 27. Qxc1 {[%clk 0:00:56]}  Qc7 {[%clk 0:01:42]} 28. Qd1 {[%clk 0:00:56]}  Qc3 {[%clk 0:01:39]} 29. Bxe6 {[%clk 0:00:55]}  fxe6 {[%clk 0:01:40]} 30. Qg4 {[%clk 0:00:54]}  Qc1+ {[%clk 0:01:21]} 31. Kh2 {[%clk 0:00:52]}  Kf7 {[%clk 0:01:21]} 32. Nh4 {[%clk 0:00:49]}  Qc2 {[%clk 0:01:04]} 33. Ndf3 {[%clk 0:00:49]}  Bd7 {[%clk 0:00:50]} 34. Kg2 {[%clk 0:00:33]}  Qe4 {[%clk 0:00:40]} 35. Qxe4 {[%clk 0:00:29]}  dxe4 {[%clk 0:00:41]} 36. Ng5+ {[%clk 0:00:30]}  Kg8 {[%clk 0:00:39]} 37. Nxg6 {[%clk 0:00:31]}  Rb8 {[%clk 0:00:34]} 38. d5 {[%clk 0:00:25]}  Rb5 {[%clk 0:00:23]} 39. dxe6 {[%clk 0:00:24]}  Be8 {[%clk 0:00:23]} 40. Nxe7+ {[%clk 0:00:23]}  Kf8 {[%clk 0:00:23]} 41. Nc8 {[%clk 0:00:19]}  Bxe5 {[%clk 0:00:20]} 42. e7+ {[%clk 0:00:19]}  Kg7 {[%clk 0:00:20]} 43. Bf4 {[%clk 0:00:17]}  Bxf4 {[%clk 0:00:18]} 44. gxf4 {[%clk 0:00:16]}  Ra5 {[%clk 0:00:18]} 45. Nd6 {[%clk 0:00:16]}  Bh5 {[%clk 0:00:17]} 46. Ngxe4 {[%clk 0:00:14]}  Rxa2 {[%clk 0:00:17]} 47. e8=Q {[%clk 0:00:13]}  Bxe8 {[%clk 0:00:16]} 48. Nxe8+ {[%clk 0:00:14]}  Kg6 {[%clk 0:00:17]} 49. N8d6 {[%clk 0:00:15]}  Rb2 {[%clk 0:00:16]} 50. f5+ {[%clk 0:00:16]}  Kh7 {[%clk 0:00:13]} 51. f6 {[%clk 0:00:14]}  Rxb3 {[%clk 0:00:13]} 52. f7 {[%clk 0:00:15]}  Kg7 {[%clk 0:00:14]} 53. Nc5 {[%clk 0:00:15]} 1-0


[Site "https://www.chess.com"]

[Event "Titled Tuesday Blitz November 22 Late 2022"]
[White "Han, Yichen"]
[Black "Ansh M Shah"]
[WhiteFideId "1054430"]
[BlackFideId "25033379"]
[WhiteElo "2645"]
[BlackElo "2423"]
[Result "1-0"]
[Round "03"]
[TimeControl "180+1"]
[Date "2022.11.23"]
[WhiteClock "0:01:06"]
[BlackClock "0:00:40"]

1. d4 {[%clk 0:03:00]}  Nf6 {[%clk 0:02:59]} 2. c4 {[%clk 0:03:00]}  e6 {[%clk 0:03:00]} 3. Nc3 {[%clk 0:03:01]}  d5 {[%clk 0:03:01]} 4. Nf3 {[%clk 0:03:00]}  Be7 {[%clk 0:03:01]} 5. Bf4 {[%clk 0:03:00]}  O-O {[%clk 0:03:02]} 6. e3 {[%clk 0:03:00]}  c6 {[%clk 0:03:02]} 7. Qc2 {[%clk 0:02:58]}  Nbd7 {[%clk 0:03:02]} 8. Rd1 {[%clk 0:02:57]}  h6 {[%clk 0:02:57]} 9. Bd3 {[%clk 0:02:54]}  dxc4 {[%clk 0:02:56]} 10. Bxc4 {[%clk 0:02:54]}  b5 {[%clk 0:02:57]} 11. Be2 {[%clk 0:02:52]}  Bb7 {[%clk 0:02:58]} 12. O-O {[%clk 0:02:50]}  a6 {[%clk 0:02:55]} 13. a3 {[%clk 0:02:44]}  Qb6 {[%clk 0:02:55]} 14. b4 {[%clk 0:02:41]}  a5 {[%clk 0:02:54]} 15. Qb2 {[%clk 0:02:30]}  Nd5 {[%clk 0:02:52]} 16. Nxd5 {[%clk 0:02:29]}  cxd5 {[%clk 0:02:53]} 17. Rc1 {[%clk 0:02:28]}  axb4 {[%clk 0:02:30]} 18. axb4 {[%clk 0:02:26]}  Ra4 {[%clk 0:02:30]} 19. Rc7 {[%clk 0:02:00]}  Rd8 {[%clk 0:02:29]} 20. Qc2 {[%clk 0:01:36]}  Rxb4 {[%clk 0:02:01]} 21. Ne5 {[%clk 0:01:36]}  Nxe5 {[%clk 0:01:58]} 22. Bxe5 {[%clk 0:01:37]}  Bd6 {[%clk 0:01:44]} 23. Bxd6 {[%clk 0:01:36]}  Rxd6 {[%clk 0:01:45]} 24. Qc5 {[%clk 0:01:23]}  Rb2 {[%clk 0:01:34]} 25. Bd3 {[%clk 0:01:20]}  Rc6 {[%clk 0:01:10]} 26. Qe7 {[%clk 0:01:09]}  Qxc7 {[%clk 0:00:40]} 27. Qe8# {[%clk 0:01:06]} 1-0


[Site "https://www.chess.com"]

[Event "Titled Tuesday Blitz November 22 Late 2022"]
[White "Horobetz, Graham"]
[Black "Rizzo, Tobias"]
[WhiteFideId "2047322"]
[BlackFideId "30942691"]
[WhiteElo "2618"]
[BlackElo "2311"]
[Result "0-1"]
[Round "03"]
[TimeControl "180+1"]
[Date "2022.11.23"]
[WhiteClock "0:00:03"]
[BlackClock "0:00:09"]

1. e4 {[%clk 0:03:00]}  c5 {[%clk 0:02:59]} 2. Nf3 {[%clk 0:03:00]}  e6 {[%clk 0:02:59]} 3. d4 {[%clk 0:03:01]}  cxd4 {[%clk 0:03:00]} 4. Nxd4 {[%clk 0:03:01]}  Nf6 {[%clk 0:03:00]} 5. Nc3 {[%clk 0:03:00]}  Nc6 {[%clk 0:03:01]} 6. Ndb5 {[%clk 0:02:59]}  Bb4 {[%clk 0:03:00]} 7. a3 {[%clk 0:02:58]}  Bxc3+ {[%clk 0:03:00]} 8. Nxc3 {[%clk 0:02:59]}  d5 {[%clk 0:03:01]} 9. Bd3 {[%clk 0:02:59]}  O-O {[%clk 0:03:00]} 10. O-O {[%clk 0:02:58]}  d4 {[%clk 0:03:00]} 11. Ne2 {[%clk 0:02:58]}  e5 {[%clk 0:03:01]} 12. Ng3 {[%clk 0:02:56]}  Be6 {[%clk 0:02:45]} 13. Bd2 {[%clk 0:02:51]}  Rc8 {[%clk 0:02:36]} 14. Nh5 {[%clk 0:02:49]}  Nd7 {[%clk 0:02:28]} 15. f4 {[%clk 0:02:47]}  exf4 {[%clk 0:02:19]} 16. Nxf4 {[%clk 0:02:47]}  Nde5 {[%clk 0:02:17]} 17. Nxe6 {[%clk 0:02:40]}  fxe6 {[%clk 0:02:17]} 18. Qh5 {[%clk 0:02:37]}  Ng6 {[%clk 0:01:56]} 19. Rxf8+ {[%clk 0:02:29]}  Qxf8 {[%clk 0:01:54]} 20. Rf1 {[%clk 0:02:25]}  Qd6 {[%clk 0:01:52]} 21. e5 {[%clk 0:01:49]}  Qxe5 {[%clk 0:01:18]} 22. Qg4 {[%clk 0:01:24]}  Nf8 {[%clk 0:01:04]} 23. Re1 {[%clk 0:01:05]}  Qd5 {[%clk 0:00:55]} 24. Bh6 {[%clk 0:00:55]}  Rc7 {[%clk 0:00:45]} 25. Rf1 {[%clk 0:00:45]}  Ne5 {[%clk 0:00:42]} 26. Qg3 {[%clk 0:00:43]}  Re7 {[%clk 0:00:23]} 27. Bg5 {[%clk 0:00:20]}  Rf7 {[%clk 0:00:22]} 28. Rxf7 {[%clk 0:00:19]}  Nxf7 {[%clk 0:00:23]} 29. Bd2 {[%clk 0:00:17]}  e5 {[%clk 0:00:23]} 30. Qg4 {[%clk 0:00:17]}  Qe6 {[%clk 0:00:16]} 31. Qe4 {[%clk 0:00:16]}  Nd6 {[%clk 0:00:12]} 32. Qe2 {[%clk 0:00:13]}  e4 {[%clk 0:00:12]} 33. Bb5 {[%clk 0:00:12]}  d3 {[%clk 0:00:11]} 34. Bxd3 {[%clk 0:00:09]}  exd3 {[%clk 0:00:11]} 35. Qxd3 {[%clk 0:00:10]}  Nf5 {[%clk 0:00:05]} 36. h3 {[%clk 0:00:10]}  Nh4 {[%clk 0:00:05]} 37. Bf4 {[%clk 0:00:05]}  Nhg6 {[%clk 0:00:05]} 38. Bg3 {[%clk 0:00:05]}  b6 {[%clk 0:00:04]} 39. Kh2 {[%clk 0:00:05]}  a5 {[%clk 0:00:04]} 40. Qd8 {[%clk 0:00:05]}  h5 {[%clk 0:00:04]} 41. h4 {[%clk 0:00:04]}  Qe4 {[%clk 0:00:02]} 42. Qg5 {[%clk 0:00:04]}  Qg4 {[%clk 0:00:02]} 43. Qd5+ {[%clk 0:00:03]}  Qe6 {[%clk 0:00:02]} 44. Qf3 {[%clk 0:00:03]}  Qf7 {[%clk 0:00:01]} 45. Qxh5 {[%clk 0:00:02]}  Qc4 {[%clk 0:00:01]} 46. Qg5 {[%clk 0:00:02]}  Qxc2 {[%clk 0:00:02]} 47. h5 {[%clk 0:00:03]}  Ne7 {[%clk 0:00:01]} 48. h6 {[%clk 0:00:03]}  Qh7 {[%clk 0:00:02]} 49. Qxg7+ {[%clk 0:00:02]}  Qxg7 {[%clk 0:00:03]} 50. hxg7 {[%clk 0:00:03]}  Kxg7 {[%clk 0:00:03]} 51. Bc7 {[%clk 0:00:03]}  Nd5 {[%clk 0:00:04]} 52. Bd6 {[%clk 0:00:02]}  Ne6 {[%clk 0:00:04]} 53. Be5+ {[%clk 0:00:03]}  Kg6 {[%clk 0:00:04]} 54. Kg3 {[%clk 0:00:03]}  Kf5 {[%clk 0:00:05]} 55. Bd6 {[%clk 0:00:03]}  Nc5 {[%clk 0:00:05]} 56. Kf3 {[%clk 0:00:03]}  Nd3 {[%clk 0:00:05]} 57. g4+ {[%clk 0:00:03]}  Kg5 {[%clk 0:00:05]} 58. Ke4 {[%clk 0:00:03]}  N3f4 {[%clk 0:00:05]} 59. Bxf4+ {[%clk 0:00:03]}  Nxf4 {[%clk 0:00:05]} 60. Kd4 {[%clk 0:00:03]}  Kxg4 {[%clk 0:00:06]} 61. Kc4 {[%clk 0:00:03]}  Kf5 {[%clk 0:00:06]} 62. Kb5 {[%clk 0:00:04]}  Nd5 {[%clk 0:00:07]} 63. Kc6 {[%clk 0:00:03]}  Ke5 {[%clk 0:00:06]} 64. Kb5 {[%clk 0:00:03]}  Kd6 {[%clk 0:00:06]} 65. b3 {[%clk 0:00:02]}  Kc7 {[%clk 0:00:07]} 66. Kc4 {[%clk 0:00:02]}  Kc6 {[%clk 0:00:07]} 67. b4 {[%clk 0:00:02]}  axb4 {[%clk 0:00:08]} 68. axb4 {[%clk 0:00:03]}  b5+ {[%clk 0:00:08]} 69. Kd4 {[%clk 0:00:03]}  Nxb4 {[%clk 0:00:09]} 0-1


[Site "https://www.chess.com"]

[Event "Titled Tuesday Blitz November 22 Late 2022"]
[White "Jaracz, Pawel"]
[Black "Chigaev, Maksim"]
[WhiteFideId "1102222"]
[BlackFideId "4108116"]
[WhiteElo "2459"]
[BlackElo "2541"]
[Result "0-1"]
[Round "03"]
[TimeControl "180+1"]
[Date "2022.11.22"]
[WhiteClock "0:00:02"]
[BlackClock "0:01:37"]

1. e4 {[%clk 0:02:53]}  c5 {[%clk 0:02:59]} 2. Nf3 {[%clk 0:02:53]}  e6 {[%clk 0:03:00]} 3. d4 {[%clk 0:02:53]}  cxd4 {[%clk 0:03:01]} 4. Nxd4 {[%clk 0:02:54]}  Nf6 {[%clk 0:03:01]} 5. Nc3 {[%clk 0:02:54]}  Nc6 {[%clk 0:03:02]} 6. a3 {[%clk 0:02:53]}  Be7 {[%clk 0:03:01]} 7. f4 {[%clk 0:02:51]}  d6 {[%clk 0:02:50]} 8. Be3 {[%clk 0:02:49]}  e5 {[%clk 0:02:29]} 9. Nf5 {[%clk 0:02:37]}  Bxf5 {[%clk 0:02:28]} 10. exf5 {[%clk 0:02:37]}  d5 {[%clk 0:02:29]} 11. fxe5 {[%clk 0:02:36]}  Nxe5 {[%clk 0:02:29]} 12. Bb5+ {[%clk 0:02:35]}  Nc6 {[%clk 0:02:27]} 13. Qf3 {[%clk 0:02:29]}  O-O {[%clk 0:02:24]} 14. O-O-O {[%clk 0:02:28]}  Qa5 {[%clk 0:02:21]} 15. Bd2 {[%clk 0:01:55]}  d4 {[%clk 0:01:56]} 16. Bxc6 {[%clk 0:01:54]}  bxc6 {[%clk 0:01:56]} 17. Ne4 {[%clk 0:01:36]}  Qb5 {[%clk 0:01:56]} 18. Nxf6+ {[%clk 0:01:26]}  Bxf6 {[%clk 0:01:57]} 19. Qd3 {[%clk 0:01:13]}  Qd5 {[%clk 0:01:56]} 20. Kb1 {[%clk 0:00:50]}  Rab8 {[%clk 0:01:52]} 21. g4 {[%clk 0:00:47]}  c5 {[%clk 0:01:41]} 22. c4 {[%clk 0:00:42]}  Qb7 {[%clk 0:01:40]} 23. b4 {[%clk 0:00:17]}  cxb4 {[%clk 0:01:39]} 24. axb4 {[%clk 0:00:15]}  Be7 {[%clk 0:01:38]} 25. b5 {[%clk 0:00:11]}  a6 {[%clk 0:01:38]} 26. Bf4 {[%clk 0:00:02]}  axb5 {[%clk 0:01:37]} 0-1


[Site "https://www.chess.com"]